fUSD/lending_fUSD_20250125
["ID","MTS","AMOUNT","RATE_DAILY","PERIOD"]
[350301422,1737778239387,-500.0,0.00021761,2]
[350301424,1737778239396,-385.8,0.00021761,2]
[350301425,1737778239405,-500.0,0.00021761,2]
[350301427,1737778239415,-500.0,0.00021761,2]
[350301429,1737778239424,-500.0,0.00021761,2]
[350301431,1737778239433,-500.0,0.00021761,2]
[350301433,1737778239442,-500.0,0.00021761,2]
[350301435,1737778239451,-500.0,0.00021761,2]
[350301437,1737778239460,-500.0,0.00021761,2]
[350301439,1737778239470,-500.0,0.00021761,2]
[350301441,1737778239479,-500.0,0.00021761,2]
[350301443,1737778239489,-500.0,0.00021761,2]
[350301445,1737778239498,-500.0,0.00021761,2]
[350301447,1737778239507,-500.0,0.00021761,2]
[350301449,1737778239517,-500.0,0.00021761,2]
[350301451,1737778239527,-500.0,0.00021761,2]
[350301453,1737778239536,-500.0,0.00021761,2]
[350301455,1737778239546,-500.0,0.00021761,2]
[350301457,1737778239555,-1000.0,0.00021761,2]
[350301459,1737778239564,-500.0,0.00021761,2]
[350301461,1737778239573,-500.0,0.00021761,2]
[350301463,1737778239582,-500.0,0.00021761,2]
[350301465,1737778239597,-500.0,0.00021761,2]
[350301467,1737778239606,-500.0,0.00021761,2]
[350301469,1737778239615,-500.0,0.00021761,2]
[350301471,1737778239624,-188.41745267,0.00021761,2]
[350301472,1737778239633,-500.0,0.00021761,2]
[350301473,1737778239641,-500.0,0.00021761,2]
[350301474,1737778239650,-500.0,0.00021761,2]
[350301475,1737778239660,-500.0,0.00021761,2]
[350301476,1737778239668,-500.0,0.00021761,2]
[350301477,1737778239677,-500.0,0.00021761,2]
[350301478,1737778239686,-500.0,0.00021761,2]
[350301479,1737778239695,-500.0,0.00021761,2]
[350301480,1737778239704,-500.0,0.00021761,2]
[350301481,1737778239712,-500.0,0.00021761,2]
[350301482,1737778239721,-500.0,0.00021761,2]
[350301483,1737778239730,-500.0,0.00021761,2]
[350301484,1737778239739,-249.4296922,0.00021761,2]
[350301485,1737778239753,-558.94933847,0.00021779,2]
[350301486,1737778239762,-500.0,0.00021779,2]
[350301487,1737778239770,-500.0,0.00021779,2]
[350301488,1737778239779,-500.0,0.00021779,2]
[350301489,1737778239789,-500.0,0.00021779,2]
[350301490,1737778239798,-500.0,0.00021779,2]
[350301491,1737778239808,-2045.0,0.0002178,2]
[350301493,1737778239819,-1084.00753,0.0002178,2]
[350301495,1737778239828,-1000.0,0.000218,50]
[350301497,1737778239837,-2500.0,0.000218,2]
[350301499,1737778239846,-150.0,0.00021802,2]
[350301501,1737778239855,-500.0,0.00021812,2]
[350301503,1737778239864,-500.0,0.00021812,2]
[350301505,1737778239873,-511.55,0.00021812,2]
[350301507,1737778239882,-500.0,0.00021812,2]
[350301509,1737778239891,-500.0,0.00021812,2]
[350301511,1737778239901,-500.0,0.00021812,2]
[350301513,1737778239911,-500.0,0.00021812,2]
[350301515,1737778239920,-584.85,0.00021812,2]
[350301517,1737778239929,-500.0,0.00021812,2]
[350301519,1737778239939,-500.0,0.00021812,2]
[350301521,1737778239948,-500.0,0.00021812,2]
[350301523,1737778239957,-500.0,0.00021823,2]
[350301525,1737778239966,-500.0,0.00021823,2]
[350301527,1737778239975,-500.0,0.00021823,2]
[350301529,1737778239985,-500.0,0.00021823,2]
[350301531,1737778239994,-500.0,0.00021823,2]
[350301533,1737778240005,-500.0,0.00021823,2]
[350301535,1737778240015,-500.0,0.00021823,2]
[350301537,1737778240024,-500.0,0.00021823,2]
[350301539,1737778240033,-500.0,0.00021823,2]
[350301540,1737778240043,-500.0,0.00021823,2]
[350301542,1737778240053,-500.0,0.00021823,2]
[350301545,1737778240062,-500.0,0.00021823,2]
[350301546,1737778240072,-500.0,0.00021823,2]
[350301548,1737778240082,-500.0,0.00021823,2]
[350301550,1737778240092,-500.0,0.00021823,2]
[350301552,1737778240101,-500.0,0.00021823,2]
[350301554,1737778240111,-500.0,0.00021823,2]
[350301556,1737778240120,-500.0,0.00021823,2]
[350301558,1737778240130,-726.04,0.00021823,2]
[350301560,1737778240139,-500.0,0.00021823,2]
[350301562,1737778240148,-586.96,0.00021823,2]
[350301564,1737778240157,-502.35,0.00021823,2]
[350301566,1737778240167,-150.0,0.00021824,2]
[350301568,1737778240176,-500.0,0.00021824,2]
[350301570,1737778240186,-150.0,0.00021836,2]
[350301573,1737778240195,-150.0,0.00021842,2]
[350301574,1737778240205,-150.0,0.00021866,2]
[350301576,1737778240215,-150.0,0.00021881,2]
[350301578,1737778240224,-159.853,0.00021885,2]
[350301581,1737778240234,-150.0,0.00021889,2]
[350301583,1737778240245,-2000.0,0.0002189,2]
[350301584,1737778240254,-150.0,0.00021891,2]
[350301586,1737778240264,-766.10948637,0.00021891,2]
[350301588,1737778240274,-2544.9432862,0.00021891,2]
[350301590,1737778240283,-766.10948635,0.00021892,2]
[350301592,1737778240292,-766.10948635,0.00021893,2]
[350301594,1737778240302,-766.10948635,0.00021894,2]
[350301595,1737778240312,-150.0,0.00021895,2]
[350301597,1737778240321,-766.10948635,0.00021895,2]
[350301599,1737778240331,-766.10948635,0.00021896,2]
[350301601,1737778240340,-766.10948635,0.00021897,2]
[350301603,1737778240349,-500.0,0.00021898,2]
[350301605,1737778240358,-500.0,0.00021898,2]
[350301607,1737778240367,-500.0,0.00021898,2]
[350301609,1737778240379,-500.0,0.00021898,2]
[350301611,1737778240390,-603.15,0.00021898,2]
[350301613,1737778240400,-500.0,0.00021898,2]
[350301615,1737778240410,-500.0,0.00021898,2]
[350301617,1737778240420,-500.0,0.00021898,2]
[350301619,1737778240429,-500.0,0.00021898,2]
[350301621,1737778240438,-176.71,0.00021898,2]
[350301623,1737778240447,-463.1,0.00021898,2]
[350301625,1737778240456,-290.75,0.00021898,2]
[350301627,1737778240465,-366.45,0.00021898,2]
[350301629,1737778240475,-500.0,0.00021898,2]
[350301631,1737778240484,-500.0,0.00021898,2]
[350301633,1737778240493,-500.0,0.00021898,2]
[350301635,1737778240502,-500.0,0.00021898,2]
[350301637,1737778240511,-500.0,0.00021898,2]
[350301639,1737778240521,-500.0,0.00021898,2]
[350301641,1737778240530,-500.0,0.00021898,2]
[350301643,1737778240540,-500.0,0.00021898,2]
[350301645,1737778240549,-607.02285826,0.00021898,2]
[350301646,1737778240559,-500.0,0.00021898,2]
[350301648,1737778240573,-500.0,0.00021898,2]
[350301651,1737778240583,-500.0,0.00021898,2]
[350301653,1737778240592,-500.0,0.00021898,2]
[350301655,1737778240601,-500.0,0.00021898,2]
[350301657,1737778240608,-500.0,0.00021898,2]
[350301659,1737778240620,-500.0,0.00021898,2]
[350301661,1737778240631,-500.0,0.00021898,2]
[350301663,1737778240640,-500.0,0.00021898,2]
[350301665,1737778240650,-500.0,0.00021898,2]
[350301666,1737778240660,-500.0,0.00021898,2]
[350301668,1737778240669,-500.0,0.00021898,2]
[350301670,1737778240679,-766.10948635,0.00021898,2]
[350301672,1737778240688,-766.10948635,0.00021899,2]
[350301674,1737778240697,-2000.0,0.000219,2]
[350301676,1737778240706,-2000.0,0.000219,2]
[350301678,1737778240716,-2000.0,0.000219,2]
[350301680,1737778240725,-2000.0,0.000219,2]
[350301682,1737778240734,-974.07136051,0.000219,3]
[350301684,1737778240748,-319.83782457,0.000219,2]
[350301686,1737778240757,-766.10948635,0.000219,2]
[350301688,1737778240766,-500.0,0.00021916,2]
[350301690,1737778240775,-500.0,0.00021916,2]
[350301692,1737778240785,-2000.0,0.00021917,30]
[350301694,1737778240795,-150.0,0.00021918,2]
[350301696,1737778240804,-150.0,0.00021921,2]
[350301698,1737778240813,-150.0,0.00021934,2]
[350301700,1737778240824,-150.0,0.00021942,2]
[350301702,1737778240833,-150.0,0.00021943,2]
[350301704,1737778240842,-500.0,0.00021949,2]
[350301706,1737778240851,-500.0,0.00021949,2]
[350301708,1737778240860,-246.86,0.00021949,2]
[350301710,1737778240869,-500.0,0.00021949,2]
[350301712,1737778240879,-245.77590743,0.00021956,30]
[350301714,1737778240887,-150.0,0.00021956,30]
[350301716,1737778240897,-641.08358193,0.00021956,60]
[350301718,1737778240907,-2333.90327076,0.00021956,30]
[350301720,1737778240916,-1058.0,0.00021956,5]
[350301722,1737778240926,-1082.99668402,0.00021956,5]
[350301724,1737778240936,-5116.48025419,0.00021956,120]
[350301726,1737778240945,-2496.08365404,0.00021956,120]
[350301727,1737778240954,-500.0,0.00021957,2]
[350301729,1737778240964,-500.0,0.00021959,2]
[350301731,1737778240973,-500.0,0.00021959,2]
[350301733,1737778240982,-500.0,0.0002196,2]
[350301735,1737778240991,-500.0,0.0002196,2]
[350301737,1737778241000,-500.0,0.0002196,2]
[350301739,1737778241009,-500.0,0.0002196,2]
[350301741,1737778241019,-500.0,0.0002196,2]
[350301743,1737778241030,-560.34,0.0002196,2]
[350301745,1737778241039,-500.0,0.0002196,2]
[350301747,1737778241048,-500.0,0.0002196,2]
[350301749,1737778241058,-633.56,0.0002196,2]
[350301751,1737778241067,-500.0,0.0002196,2]
[350301753,1737778241077,-500.0,0.0002196,2]
[350301755,1737778241086,-500.0,0.0002196,2]
[350301757,1737778241096,-500.0,0.0002196,2]
[350301759,1737778241105,-500.0,0.0002196,2]
[350301761,1737778241114,-726.04,0.0002196,2]
[350301763,1737778241123,-500.0,0.0002196,2]
[350301764,1737778241132,-586.96,0.0002196,2]
[350301767,1737778241141,-150.0,0.00021973,4]
[350301768,1737778241151,-150.0,0.00021973,4]
[350301770,1737778241161,-150.0,0.00021973,4]
[350301772,1737778241170,-225.12569742,0.00021973,4]
[350301774,1737778241179,-1000.0,0.00021974,2]
[350301776,1737778241188,-150.0,0.00021982,4]
[350301778,1737778241197,-428.0707926,0.00021985,2]
[350301780,1737778241207,-428.0707926,0.00021985,2]
[350301782,1737778241216,-428.0707926,0.00021985,2]
[350301784,1737778241225,-428.0707926,0.00021985,2]
[350301786,1737778241234,-428.0707926,0.00021985,2]
[350301788,1737778241244,-1651.5096275,0.00021985,2]
[350301790,1737778241253,-1292.9816419,0.00021985,2]
[350301792,1737778241262,-934.4536563,0.00021985,2]
[350301794,1737778241271,-575.9256707,0.00021985,2]
[350301796,1737778241281,-217.3976851,0.00021985,2]
[350301798,1737778241290,-150.0,0.00021986,4]
[350301800,1737778241299,-500.0,0.00021989,2]
[350301802,1737778241308,-500.0,0.00021989,2]
[350301804,1737778241318,-401.54628071,0.00021989,2]
[350301806,1737778241327,-298.1724496,0.0002199,2]
[350301808,1737778241336,-667018.38499854,0.0002199,3]
[350301810,1737778241346,-150.0,0.00021991,4]
[350301812,1737778241355,-150.0,0.00021995,2]
[350301814,1737778241364,-119781.66781022,0.00021997,7]
[350301816,1737778241373,-2000.0,0.00021999,2]
[350301818,1737778241382,-2000.0,0.00021999,2]
[350301820,1737778241391,-2000.0,0.00021999,2]
[350301822,1737778241400,-2000.0,0.00021999,2]
[350301824,1737778241410,-100028.0,0.00021999,2]
[350301826,1737778241419,-15816.25,0.00021999,2]
[350301828,1737778241428,-1262.78,0.00021999,2]
[350301830,1737778241438,-955.0,0.00022,2]
[350301832,1737778241447,-68358.47600478,0.00022,2]
[350301834,1737778241456,-5493.74081685,0.00022,2]
[350301836,1737778241465,-20000.0,0.00022,2]
[350301838,1737778241475,-5194490.48749284,0.00022,2]
[350301846,1737778241542,-336.44,0.00022,2]
[350301848,1737778241554,-1576.7955485,0.00022,2]
[350301850,1737778241565,-471.72278945,0.00022,2]
[350301853,1737778241583,-419.87015463,0.00021823,2]
[350301856,1737778241594,-80.12984537,0.00021823,2]
[350301858,1737778241604,-255.79304463,0.00022,2]
[350301996,1737778243477,-156.70650141,0.00021823,2]
[350301997,1737778243487,-526.36239784,0.00022,2]
[350301998,1737778243639,-1334.63768052,0.00022,2]
[350301999,1737778243694,-2547.41558039,0.00022,2]
[350302105,1737778718348,150.0,8.801e-05,5]
[350302107,1737778802602,7230.92142174,0.00022,120]
[350302108,1737778802627,2837.85580948,0.00022,120]
[350302111,1737779142132,-163.26,0.00010137,2]
[350302112,1737779142153,-191.73,0.00012329,2]
[350302113,1737779142174,-9.2888561,0.00015,2]
[350302118,1737779151088,-524.7111439,0.00015,2]
[350302119,1737779151110,-945.02722573,0.000154,2]
[350302120,1737779151135,-1278.11995734,0.00016437,2]
[350302127,1737779231191,-178.20716217,0.0001355,2]
[350302128,1737779231217,-550.0,0.00015,2]
[350302129,1737779231239,-1183.92050106,0.00016,2]
[350302136,1737779325023,14034.29066319,8e-05,2]
[350302137,1737779345105,-170.2675997,9.973e-05,2]
[350302138,1737779353085,-9459.01953818,9.973e-05,2]
[350302139,1737779362091,-289.41252055,9.973e-05,2]
[350302140,1737779366086,-18528.30034157,9.973e-05,2]
[350302141,1737779366110,-300.0,9.999e-05,2]
[350302142,1737779366133,-639.85407934,9.999e-05,2]
[350302143,1737779366155,-500.0,9.999e-05,2]
[350302144,1737779366175,-483.58342973,9.999e-05,2]
[350302145,1737779366196,-500.0,9.999e-05,2]
[350302146,1737779366217,-101609.36734267,0.0001,2]
[350302147,1737779372067,-1497.90359972,0.0001,2]
[350302148,1737779372096,-16813.41477483,0.0001,2]
[350302181,1737779431643,-150.0,9.999e-05,2]
[350302182,1737779431653,-622.1419729,0.0001,2]
[350302183,1737779431752,-160902.62985116,0.0001,2]
[350302184,1737779431764,-75655.32452928,0.0001,2]
[350302185,1737779431861,-310.7802346,0.0001,2]
[350302186,1737779431872,-1734.9200704,0.0001,2]
[350302214,1737779437596,-2230902.38624186,0.0001,2]
[350302215,1737779437606,-158.13677173,0.0001,2]
[350302216,1737779437615,-174.84302246,0.00010859,2]
[350302217,1737779437625,-619.23,0.00010959,2]
[350302218,1737779437635,-155.0,0.00010999,2]
[350302219,1737779437645,-498.93660739,0.00013,5]
[350302220,1737779437663,-174.84302244,0.00013067,2]
[350302221,1737779437674,-379.60839124,0.00014,2]
[350302222,1737779437683,-250.0,0.00014,2]
[350302223,1737779437693,-1761.08617864,0.0001439,2]
[350302224,1737779437703,-3634.92084385,0.00015,2]
[350302225,1737779437714,-2174.50198752,0.00015,2]
[350302226,1737779437723,-174.84302244,0.00015275,2]
[350302227,1737779437733,-821.08964737,0.00016,2]
[350302228,1737779437743,-1300.45344556,0.000164,2]
[350302229,1737779437752,-1300.45344533,0.000164,2]
[350302230,1737779437761,-1300.45344533,0.000164,2]
[350302231,1737779437771,-1300.45344533,0.000164,2]
[350302232,1737779437780,-1300.45344533,0.000164,2]
[350302233,1737779437790,-1300.45344533,0.000164,2]
[350302234,1737779437799,-1300.45344533,0.000164,2]
[350302235,1737779437808,-1300.45344533,0.000164,2]
[350302236,1737779437817,-1300.45344533,0.000164,2]
[350302237,1737779437827,-1300.45344533,0.000164,2]
[350302238,1737779437836,-1300.45344533,0.000164,2]
[350302239,1737779437846,-1300.45344533,0.000164,2]
[350302240,1737779437855,-1300.45344533,0.000164,2]
[350302241,1737779437864,-1300.45344533,0.000164,2]
[350302242,1737779437874,-1300.45344533,0.000164,2]
[350302243,1737779437884,-10762.55931209,0.00016437,2]
[350302244,1737779437894,-6245.97423294,0.00016437,2]
[350302245,1737779437903,-500.0,0.00016438,2]
[350302246,1737779437913,-500.0,0.00016438,2]
[350302247,1737779437923,-500.0,0.00016438,2]
[350302248,1737779437932,-500.0,0.00016438,2]
[350302249,1737779437942,-799.81,0.00016438,2]
[350302250,1737779437951,-500.0,0.00016438,2]
[350302251,1737779437960,-1793.67,0.000165,2]
[350302252,1737779437970,-500.0,0.00016575,2]
[350302253,1737779437980,-500.0,0.00016575,2]
[350302254,1737779437990,-500.0,0.00016575,2]
[350302255,1737779438002,-500.0,0.00016575,2]
[350302256,1737779438011,-799.81,0.00016575,2]
[350302257,1737779438021,-1300.45344533,0.0001659,2]
[350302258,1737779438030,-500.0,0.00016712,2]
[350302259,1737779438039,-500.0,0.00016712,2]
[350302260,1737779438049,-500.0,0.00016712,2]
[350302261,1737779438059,-799.81,0.00016712,2]
[350302262,1737779438068,-163.26,0.00016813,2]
[350302263,1737779438078,-500.0,0.00016849,2]
[350302264,1737779438087,-500.0,0.00016849,2]
[350302265,1737779438096,-799.81,0.00016849,2]
[350302266,1737779438106,-1300.45344533,0.00016969,2]
[350302267,1737779438115,-500.0,0.00016986,2]
[350302268,1737779438124,-799.81,0.00016986,2]
[350302269,1737779438135,-600.0,0.00017,2]
[350302270,1737779438149,-500.0,0.00017123,2]
[350302271,1737779438158,-799.81,0.00017123,2]
[350302272,1737779438167,-500.0,0.0001726,2]
[350302273,1737779438178,-799.81,0.0001726,2]
[350302274,1737779438187,-1300.45344533,0.00017348,2]
[350302275,1737779438196,-500.0,0.00017397,2]
[350302276,1737779438206,-799.81,0.00017397,2]
[350302277,1737779438216,-174.84302244,0.00017484,2]
[350302278,1737779438226,-500.0,0.00017534,2]
[350302279,1737779438236,-799.81,0.00017534,2]
[350302280,1737779438245,-250.0,0.00017651,2]
[350302281,1737779438255,-622.66830338,0.00017671,2]
[350302282,1737779438264,-799.81,0.00017671,2]
[350302283,1737779438273,-1300.45344533,0.00017728,2]
[350302284,1737779438283,-799.81,0.00017808,2]
[350302285,1737779438292,-799.81,0.00017945,2]
[350302286,1737779438303,-1135.36479407,0.00018,2]
[350302287,1737779438312,-306.27946759,0.00018,2]
[350302288,1737779438322,-152.926372,0.00018079,2]
[350302289,1737779438332,-208.993963,0.00018079,2]
[350302290,1737779438341,-161.469545,0.00018079,2]
[350302291,1737779438350,-151.567162,0.00018079,2]
[350302292,1737779438359,-150.831249,0.00018079,2]
[350302293,1737779438369,-153.650183,0.00018079,2]
[350302294,1737779438378,-159.08072,0.00018079,2]
[350302295,1737779438387,-162.020942,0.00018079,2]
[350302296,1737779438396,-799.81,0.00018082,2]
[350302297,1737779438407,-391.80149259,0.000181,2]
[350302298,1737779438416,-1300.45344533,0.00018107,2]
[350302299,1737779438430,-500.0,0.00018164,2]
[350302300,1737779438444,-500.0,0.00018164,2]
[350302301,1737779438454,-208.993963,0.00018216,2]
[350302302,1737779438464,-799.81,0.00018219,2]
[350302303,1737779438473,-150.83,0.000183,2]
[350302304,1737779438483,-150.83,0.000183,2]
[350302305,1737779438492,-150.83,0.000183,2]
[350302306,1737779438502,-150.83,0.000183,2]
[350302307,1737779438511,-150.83,0.000183,2]
[350302308,1737779438521,-150.83,0.000183,2]
[350302309,1737779438531,-150.83,0.000183,2]
[350302310,1737779438541,-150.83,0.000183,2]
[350302311,1737779438550,-150.83,0.000183,2]
[350302312,1737779438561,-150.83,0.000183,2]
[350302313,1737779438570,-150.83,0.000183,2]
[350302314,1737779438580,-150.83,0.000183,2]
[350302315,1737779438590,-150.83,0.000183,2]
[350302316,1737779438602,-150.83,0.000183,2]
[350302317,1737779438613,-150.83,0.000183,2]
[350302318,1737779438624,-150.83,0.000183,2]
[350302319,1737779438634,-150.83,0.000183,2]
[350302320,1737779438645,-150.83,0.000183,2]
[350302321,1737779438655,-150.83,0.000183,2]
[350302322,1737779438664,-150.83,0.000183,2]
[350302323,1737779438674,-150.83,0.000183,2]
[350302324,1737779438683,-150.83,0.000183,2]
[350302325,1737779438692,-150.83,0.000183,2]
[350302326,1737779438701,-150.83,0.000183,2]
[350302327,1737779438710,-208.993963,0.00018353,2]
[350302328,1737779438719,-150.831249,0.00018353,2]
[350302329,1737779438728,-153.650183,0.00018353,2]
[350302330,1737779438737,-799.81,0.00018356,2]
[350302331,1737779438746,-859.03,0.00018361,2]
[350302332,1737779438755,-1300.45344533,0.00018486,2]
[350302333,1737779438764,-152.926372,0.0001849,2]
[350302334,1737779438773,-208.993963,0.0001849,2]
[350302335,1737779438783,-799.81,0.00018493,2]
[350302336,1737779438792,-208.993963,0.00018499,2]
[350302337,1737779438803,-150.831249,0.00018499,2]
[350302338,1737779438812,-153.650183,0.00018499,2]
[350302339,1737779438822,-152.926372,0.00018602,2]
[350302340,1737779438832,-208.993963,0.00018602,2]
[350302341,1737779438842,-208.993963,0.00018603,2]
[350302342,1737779438852,-150.831249,0.00018603,2]
[350302343,1737779438863,-153.650183,0.00018603,2]
[350302344,1737779438874,-799.81,0.0001863,2]
[350302345,1737779438883,-208.993963,0.00018635,2]
[350302346,1737779438893,-153.650183,0.00018635,2]
[350302347,1737779438903,-152.926372,0.00018636,2]
[350302348,1737779438912,-208.993963,0.00018636,2]
[350302349,1737779438922,-150.831249,0.00018636,2]
[350302350,1737779438932,-208.993963,0.00018678,2]
[350302351,1737779438941,-208.993963,0.00018678,2]
[350302352,1737779438950,-150.831249,0.00018678,2]
[350302353,1737779438960,-153.650183,0.00018678,2]
[350302354,1737779438969,-152.926372,0.00018692,2]
[350302355,1737779438978,-208.993963,0.00018692,2]
[350302356,1737779438987,-153.650183,0.00018692,2]
[350302357,1737779438996,-208.993963,0.00018693,2]
[350302358,1737779439006,-150.831249,0.00018693,2]
[350302359,1737779439014,-152.926372,0.00018699,2]
[350302360,1737779439023,-208.993963,0.00018699,2]
[350302361,1737779439032,-208.993963,0.00018699,2]
[350302362,1737779439041,-150.831249,0.00018699,2]
[350302363,1737779439050,-153.650183,0.00018699,2]
[350302364,1737779439059,-208.993963,0.00018736,2]
[350302365,1737779439068,-150.831249,0.00018736,2]
[350302366,1737779439076,-153.650183,0.00018736,2]
[350302367,1737779439091,-152.926372,0.0001874,2]
[350302368,1737779439101,-208.993963,0.0001874,2]
[350302369,1737779439110,-208.993963,0.00018741,2]
[350302370,1737779439119,-150.831249,0.00018741,2]
[350302371,1737779439135,-153.650183,0.00018741,2]
[350302372,1737779439150,-799.81,0.00018767,2]
[350302373,1737779439159,-208.993963,0.00018772,2]
[350302374,1737779439168,-152.926372,0.00018773,2]
[350302375,1737779439177,-208.993963,0.00018773,2]
[350302376,1737779439187,-150.831249,0.00018773,2]
[350302377,1737779439196,-153.650183,0.00018773,2]
[350302378,1737779439205,-208.993963,0.00018815,2]
[350302379,1737779439216,-153.650183,0.00018815,2]
[350302380,1737779439226,-208.993963,0.00018829,2]
[350302381,1737779439236,-150.831249,0.00018829,2]
[350302382,1737779439246,-152.926372,0.00018836,2]
[350302383,1737779439256,-208.993963,0.00018836,2]
[350302384,1737779439265,-153.650183,0.00018836,2]
[350302385,1737779439275,-1300.45344533,0.00018866,2]
[350302386,1737779439285,-208.993963,0.00018877,2]
[350302387,1737779439295,-150.831249,0.00018877,2]
[350302388,1737779439473,-1793.67,0.000189,2]
[350302390,1737779439483,-799.81,0.00018904,2]
[350302392,1737779439493,-152.926372,0.00018909,2]
[350302393,1737779439502,-208.993963,0.00018909,2]
[350302394,1737779439512,-153.650183,0.00018909,2]
[350302395,1737779439522,-208.993963,0.0001891,2]
[350302396,1737779439532,-150.831249,0.0001891,2]
[350302398,1737779439542,-208.993963,0.00018952,2]
[350302399,1737779439551,-153.650183,0.00018952,2]
[350302400,1737779439560,-152.926372,0.00018966,2]
[350302401,1737779439570,-208.993963,0.00018966,2]
[350302402,1737779439579,-150.831249,0.00018966,2]
[350302403,1737779439589,-650.0,0.00019,2]
[350302404,1737779439598,-208.993963,0.00019014,2]
[350302405,1737779439608,-153.650183,0.00019014,2]
[350302406,1737779439617,-799.81,0.00019041,2]
[350302407,1737779439627,-208.993963,0.00019046,2]
[350302408,1737779439636,-150.831249,0.00019046,2]
[350302409,1737779439645,-254.85,0.0001905,2]
[350302410,1737779439655,-247.45,0.0001905,2]
[350302411,1737779439665,-247.9,0.0001905,2]
[350302412,1737779439675,-253.79,0.0001905,2]
[350302413,1737779439684,-253.91,0.0001905,2]
[350302414,1737779439693,-245.5,0.00019051,2]
[350302415,1737779439703,-250.04,0.00019051,2]
[350302416,1737779439712,-247.24,0.00019051,2]
[350302417,1737779439721,-245.17,0.00019051,2]
[350302418,1737779439731,-252.99,0.00019051,2]
[350302419,1737779439740,-254.35,0.00019051,2]
[350302420,1737779439750,-251.21,0.00019051,2]
[350302421,1737779439762,-246.51,0.00019051,2]
[350302422,1737779439772,-245.15,0.00019051,2]
[350302423,1737779439781,-246.85,0.00019052,2]
[350302424,1737779439792,-251.92,0.00019052,2]
[350302425,1737779439803,-253.13,0.00019052,2]
[350302426,1737779439813,-251.09,0.00019052,2]
[350302427,1737779439823,-245.69,0.00019052,2]
[350302428,1737779439835,-252.85,0.00019052,2]
[350302429,1737779439846,-248.34,0.00019052,2]
[350302430,1737779439856,-152.926372,0.00019103,2]
[350302431,1737779439867,-208.993963,0.00019103,2]
[350302432,1737779439877,-153.650183,0.00019103,2]
[350302433,1737779439887,-208.993963,0.00019151,2]
[350302434,1737779439897,-150.831249,0.00019151,2]
[350302435,1737779439908,-799.81,0.00019178,2]
[350302436,1737779439918,-152.926372,0.00019183,2]
[350302437,1737779439928,-208.993963,0.00019183,2]
[350302438,1737779439937,-153.650183,0.00019183,2]
[350302439,1737779439947,-3791.34953571,0.000192,2]
[350302440,1737779439956,-208.993963,0.0001924,2]
[350302441,1737779439967,-150.831249,0.0001924,2]
[350302442,1737779439976,-1300.45344533,0.00019245,2]
[350302443,1737779439986,-799.81,0.00019315,2]
[350302444,1737779439995,-208.993963,0.0001932,2]
[350302445,1737779440005,-153.650183,0.0001932,2]
[350302446,1737779440014,-10737.58079772,0.00019345,2]
[350302447,1737779440024,-16682.90714127,0.0001935,2]
[350302448,1737779440034,-3638.69971684,0.00019353,2]
[350302449,1737779440044,-10737.58079772,0.00019362,2]
[350302450,1737779440054,-284.64589812,0.00019364,2]
[350302451,1737779440064,-10737.58079772,0.00019372,2]
[350302452,1737779440073,-212.83155053,0.00019376,2]
[350302453,1737779440083,-152.926372,0.00019377,2]